Cogmind - Beta 10.2 @@@ ROGUE MODE // 2020.11.07 @ 15:31:23 Player: Kyzrati Result: Destroyed by G-73 Enforcer with Phase Gun Performance ------------- Evolutions (9) 4500 Regions Visited (27) 5400 Robots Destroyed (344) 1720 Value Destroyed (20831) 20831 Prototype IDs (64) 1280 Alien Tech Used (1) 200 Bonus (29674) 29674 TOTAL SCORE: 63605 Bonus ------- Triggered Max Security 1000 High Alert Combat Kills 8403 Follower Combat Kills 2170 Aligned with FarCom 300 Met Data Miner 300 Met Warlord at Base 500 MAIN.C Attacked Warlord 500 Warlord Defense Kill 15066 Met R17 at Cetus 500 Met R17 at Research 2000 Friendly Fire -1065 Cogmind --------- Core Integrity 0/1600 Matter 167/300 Energy 42/100 System Corruption 14% Temperature Cool (9) Movement Core (50) Location -1/Access Parts ------- > --- POWER (1) -------- (None) > --- PROPULSION (2) --- (None) > --- UTILITY (20) ----- (None) > --- WEAPON (2) ------- (None) > --- INVENTORY (4) ---- Helical Railgun Helical Railgun Peak State ------------ > --- POWER ------------ Improved Quantum Reactor > --- PROPULSION ------- Armored Heavy Treads > --- UTILITY ---------- Experimental Heat Sink Experimental Cooling System Large Storage Unit Energy Well Advanced Matter Compressor Advanced Matter Compressor Advanced Targeting Computer Advanced Target Analyzer Advanced Armor Integrity Analyzer Advanced Particle Charger Advanced Kinecellerator Advanced Kinecellerator Layered Medium Armor Plating Centrium Light Armor Plating Centrium Light Armor Plating Medium Reflective Plating Advanced Thermal Shield Point Defense Array > --- WEAPON ----------- Helical Railgun Helical Railgun > --- INVENTORY -------- Biometal Medium Treads Hacking Drone Bay Enhanced Quantum Rifle Enhanced Nova Cannon Helical Railgun Linear Accelerator Enhanced Gamma Bomb Array Micro-nuke Launcher Micro-nuke Launcher Enhanced Force Lance [Rating: 172] Favorites ----------- Power Reinforced Fission Core Engine Light Angular Momentum Engine Power Core Reinforced Fission Core Reactor Particle Reactor Propulsion Improved Titanium Leg Treads Armored Medium Treads Leg Improved Titanium Leg Flight Unit Field Propulsion Array Utility Advanced Targeting Computer Device Improved Coolant Injector Storage Large Storage Unit Processor Advanced Targeting Computer Hackware Hacking Suite Protection Centrium Medium Armor Plating Weapon Helical Railgun Energy Gun Dispersion Rifle Energy Cannon Heavy Plasma Cannon Ballistic Gun Helical Railgun Ballistic Cannon Heavy Flak Cannon Launcher Rocket Array Slashing Weapon Plasma Sword Piercing Weapon Spear Build | -11 -10 -10 -10 -9 -8 -7 -7 -7 -7 -6 -6 -6 -6 -6 -5 -5 -5 -5 -4 -4 -4 -4 -3 -3 -3 -2 -1 ------- Run | Scr Mat Min Exi Min Mat Fac Low Low Zio Pro Fac Low Low Dat Pro Fac Ext Cet Fac Upp Upp War Pro Res Qua Res Acc Slots Evolved 18 | . . . . . 4 2 . . . . 2 . . . . 2 . . 2 . . . . 2 . 2 2 Power . | . . . . . . . . . . . . . . . . . . . . . . . . . . . . Propulsion . | . . . . . . . . . . . . . . . . . . . . . . . . . . . . Utility 18 | . . . . . 4 2 . . . . 2 . . . . 2 . . 2 . . . . 2 . 2 2 Weapon . | . . . . . . . . . . . . . . . . . . . . . . . . . . . . Parts Attached 388 | 6 7 9 2 2 9 26 14 7 4 14 11 3 4 . 7 7 17 10 3 2 9 30 18 43 6 96 22 Power 32 | 1 2 1 . . . 1 2 1 . 1 . . 2 . 2 . 4 1 . 1 3 1 . 1 1 7 . Engine 9 | 1 1 1 . . . . 1 1 . 1 . . . . . . 3 . . . . . . . . . . Core 13 | . 1 . . . . 1 1 . . . . . 2 . 2 . 1 . . 1 2 1 . 1 . . . Reactor 10 | . . . . . . . . . . . . . . . . . . 1 . . 1 . . . 1 7 . Propulsion 48 | 2 2 4 . . 3 4 3 . . 5 2 . 1 . . 2 . 1 . . . 4 . 2 2 8 3 Treads 31 | . . . . . 2 4 1 . . 3 . . . . . 2 . 1 . . . 4 . 2 2 8 2 Leg 16 | 2 2 4 . . 1 . 2 . . 2 2 . 1 . . . . . . . . . . . . . . Wheel . | . . . . . . . . . . . . . . . . . . . . . . . . . . . . Hover . | . . . . . . . . . . . . . . . . . . . . . . . . . . . . Flight 1 | . . . . . . . . . . . . . . . . . . . . . . . . . . . 1 Utility 160 | 1 2 . 2 . 4 7 1 1 2 . 5 . 1 . 2 4 7 4 2 1 4 15 6 23 1 64 1 Device 59 | . . . . . . . . . 2 . 2 . . . . 4 4 . . . 3 7 3 12 1 20 1 Storage 15 | 1 1 . 1 . 1 1 . . . . 2 . . . . . 1 . . . . . . 2 . 5 . Processor 27 | . . . . . 3 2 . . . . . . . . 1 . . 1 . 1 1 2 2 1 . 13 . Hackware 1 | . . . . . . . . . . . . . . . . . . . 1 . . . . . . . . Protection 58 | . 1 . 1 . . 4 1 1 . . 1 . 1 . 1 . 2 3 1 . . 6 1 8 . 26 . Artifact . | . . . . . . . . . . . . . . . . . . . . . . . . . . . . Weapon 148 | 2 1 4 . 2 2 14 8 5 2 8 4 3 . . 3 1 6 4 1 . 2 10 12 17 2 17 18 Energy Gun 29 | 1 . . . . 2 2 1 . . . . . . . . . . 1 . . . 4 9 4 . 5 . Energy Cannon 21 | . . . . . . 1 . 1 1 5 3 2 . . 1 . 1 . . . . . . 4 . 1 1 Ballistic Gun 35 | 1 1 2 . 1 . 6 2 1 . . . . . . . . 3 2 1 . 1 . . . . 8 6 Ballistic Cannon 13 | . . . . . . . 1 2 1 . . . . . 1 1 . . . . . . . 7 . . . Launcher 37 | . . 2 . 1 . 4 2 1 . 3 1 1 . . 1 . 1 1 . . 1 6 3 1 2 3 3 Special Weapon . | . . . . . . . . . . . . . . . . . . . . . . . . . . . . Impact Weapon . | . . . . . . . . . . . . . . . . . . . . . . . . . . . . Slashing Weapon 1 | . . . . . . . . . . . . . . . . . . . . . . . . 1 . . . Piercing Weapon 12 | . . . . . . 1 2 . . . . . . . . . 1 . . . . . . . . . 8 Special Melee Weapon . | . . . . . . . . . . . . . . . . . . . . . . . . . . . . Unidentified Prototypes 29 | . . . . . . 1 . . 1 . . . . . . 1 . 4 . . . 5 . 7 . 10 . Parts Lost 96 | . 1 . . . 1 1 7 2 . 6 1 . . . 3 . 3 . . 1 . 6 9 6 13 20 16 Power 9 | . . . . . . . 2 . . 1 . . . . 1 . 1 . . 1 . . . . 1 1 1 Propulsion 10 | . . . . . . . 2 . . 2 . . . . . . . . . . . 1 . . 1 1 3 Utility 60 | . . . . . . 1 1 1 . 1 1 . . . 2 . 2 . . . . 4 8 4 9 18 8 Weapon 17 | . 1 . . . 1 . 2 1 . 2 . . . . . . . . . . . 1 1 2 2 . 4 Highest Loss Streak 13 | . 1 . . . 1 1 3 1 . 4 1 . . . 3 . 1 . . 1 . 3 5 3 13 7 9 Average Slot Usage (%) 89 | . 92 100 100 100 87 97 92 85 90 92 88 92 92 93 90 82 91 99 87 93 93 89 82 87 82 85 57 Engine 2 | . 9 14 14 14 9 . 2 . 7 6 6 6 . . . . 2 1 . . . . . . . . . Core 2 | . 4 . . . . 6 1 . . . . . 5 6 4 . . . . 3 4 5 5 4 3 . . Treads 5 | . . . . . 6 14 9 . . 7 . . . . . 8 11 10 5 5 5 6 5 4 3 6 3 Leg 5 | . 28 28 28 28 11 . 5 15 15 5 12 13 13 13 13 2 . . . . . . . . . . . Device 10 | . . . . . . . . . . 7 7 13 13 13 11 11 15 12 10 10 14 17 19 19 6 16 4 Storage 17 | . 16 14 14 14 16 20 23 23 23 23 25 20 20 20 20 17 17 17 15 15 15 15 15 15 17 18 14 Processor 18 | . . . . . 16 29 30 29 23 23 20 20 20 20 20 23 17 21 21 21 20 17 16 22 21 12 11 Protection 11 | . 4 14 14 14 9 7 6 5 7 2 1 6 5 6 6 5 11 17 16 21 21 14 7 11 19 16 13 Energy Gun 1 | . 5 . . . 6 6 . . . . . . . . . . . . . . . 2 9 2 . 1 . Energy Cannon 2 | . . . . . . . . . . 6 8 12 13 13 8 . 1 . . . . . . 2 . 1 . Ballistic Gun 4 | . 22 24 28 18 10 7 8 1 . . . . . . . . 4 10 9 10 9 . . . . 4 4 Ballistic Cannon 1 | . . . . . . . . 5 11 7 3 . . . 3 10 4 . . . . . . 2 5 . . Launcher 1 | . . 3 . 9 . . . . . . . . . . . . . . . . . 6 . 1 1 . . Naked Turns 28 | . . . . . . . . . . . . . . . . . . . . . . . . . . . 28 Heaviest Build 123 | 10 25 27 25 27 43 65 67 60 68 68 87 83 87 87 87 57 83 93 99 99 100 114 116 115 104 123 111 Greatest Support 80 | 20 20 20 20 20 42 42 42 40 40 56 56 35 35 35 35 54 54 80 80 80 80 80 75 75 60 75 75 Greatest Overweight (x) 30 | 2 1 1 1 1 2 2 1 1 1 3 3 2 2 2 2 2 1 1 1 1 1 30 1 1 1 3 2 Average Overweight (x) 1 | . . 1 1 1 1 1 1 1 1 1 1 2 1 2 1 1 1 1 1 . 1 1 . . . . . Largest Inventory Capacity 20 | 6 10 8 8 8 14 20 20 20 20 20 20 16 16 16 16 16 16 16 16 16 16 16 16 16 16 16 16 Average Capacity 15 | 5 7 8 8 8 12 18 20 20 20 20 19 16 16 16 16 16 16 16 16 16 16 16 16 16 13 12 12 Most Carried 20 | 4 8 8 8 7 14 20 20 20 20 20 20 16 16 16 16 16 16 16 16 16 16 16 16 16 16 16 16 Average Carried 15 | 2 6 7 7 7 11 17 18 19 19 18 19 15 16 16 15 15 15 15 16 15 15 15 15 15 13 12 12 Final Capacity 20 | 6 8 8 8 8 14 20 20 20 20 20 16 16 16 16 16 16 16 16 16 16 16 16 16 16 10 16 4 Final Carried 20 | 4 7 8 7 7 13 20 19 19 18 20 16 16 16 16 16 16 16 16 16 16 16 16 16 16 7 15 2 Class Distribution -------------------- 39% | Scavenger-Mutant 34% | Mutant 19% | Hauler-Mutant 5% | Commander-Mutant Dominant Class ---------------- Mutant | -10/Materials Mutant | -10/Mines Mutant | -10/Exiles Mutant | -9/Mines Mutant | -8/Materials Hauler-Mutant | -7/Factory Hauler-Mutant | -7/Lower Caves Hauler-Mutant | -7/Lower Caves Hauler-Mutant | -7/Zion Hauler-Mutant | -6/Proximity Caves Hauler-Mutant | -6/Factory Mutant | -6/Lower Caves Mutant | -6/Lower Caves Mutant | -6/Data Miner Mutant | -5/Proximity Caves Mutant | -5/Factory Mutant | -5/Extension Scavenger-Mutant | -5/Cetus Scavenger-Mutant | -4/Factory Scavenger-Mutant | -4/Upper Caves Scavenger-Mutant | -4/Upper Caves Scavenger-Mutant | -4/Warlord Mutant | -3/Proximity Caves Scavenger-Mutant | -3/Research Scavenger-Mutant | -3/Quarantine Scavenger-Mutant | -2/Research Scavenger-Mutant | -1/Access Resources | -11 -10 -10 -10 -9 -8 -7 -7 -7 -7 -6 -6 -6 -6 -6 -5 -5 -5 -5 -4 -4 -4 -4 -3 -3 -3 -2 -1 ----------- Run | Scr Mat Min Exi Min Mat Fac Low Low Zio Pro Fac Low Low Dat Pro Fac Ext Cet Fac Upp Upp War Pro Res Qua Res Acc Matter Collected 10442 | 219 118 237 . 60 124 380 324 441 . 586 273 188 50 . 122 45 527 258 126 239 242 1822 247 1513 4 2287 10 Remotely 99 | . . . . . . . . . . . 99 . . . . . . . . . . . . . . . . Salvage Created 11975 | . 279 243 . . 145 770 266 284 . 426 329 107 228 . 52 113 250 421 209 426 369 2537 497 943 316 1601 1164 Parts 466 | . 24 12 . . 13 44 11 14 . 12 15 12 12 . 7 6 13 22 16 18 20 47 19 32 3 48 46 Haulers Intercepted 6 | . 1 . . . . 4 . . . . . . . . . . . . . . . . . 1 . . . Recyclers Shooed 2 | . . . . . . . . . . . . . . . . 1 . . . . . . . . . . 1 Parts Field Recycled . | . . . . . . . . . . . . . . . . . . . . . . . . . . . . Retrieved Matter . | . . . . . . . . . . . . . . . . . . . . . . . . . . . . Parts Self-Destructed 171 | . . . . . . . 4 9 . 12 . 10 16 . 3 . . . . 11 13 74 19 . . . . Prevented 32 | . . . . . . . . . . . . . 3 . . . . . . 2 . 25 2 . . . . Kills | -11 -10 -10 -10 -9 -8 -7 -7 -7 -7 -6 -6 -6 -6 -6 -5 -5 -5 -5 -4 -4 -4 -4 -3 -3 -3 -2 -1 ------- Run | Scr Mat Min Exi Min Mat Fac Low Low Zio Pro Fac Low Low Dat Pro Fac Ext Cet Fac Upp Upp War Pro Res Qua Res Acc Combat Hostiles Destroyed 309 | . 6 8 . . 3 10 7 12 1 12 6 5 5 . 6 . 5 7 2 4 9 106 14 19 16 28 18 Melee 1 | . . . . . . . . 1 . . . . . . . . . . . . . . . . . . . Guns 80 | . 5 4 . . 3 7 1 1 . . . . . . . . 3 4 2 4 6 3 7 2 . 21 7 Cannons 38 | . . . . . . . . 3 1 8 4 2 5 . 2 . 2 . . . . . . 11 . . . AOE 187 | . 1 4 . . . 3 6 7 . 4 2 3 . . 4 . . 3 . . 3 103 7 5 16 7 9 Classes Destroyed 24 | . 2 1 . . 2 6 1 . 1 1 . . . . 1 . . 1 1 . . 5 . 1 1 . . Worker 3 | . . . . . . 1 . . . . . . . . . 1 . . . . . . . . . . 1 Builder 8 | . . . . . . 1 . . . . . . . . . . 1 . 1 . . . . . . . 5 Tunneler 3 | . . . . . . 1 . . . . . . . . . . . . . . . . . . . . 2 Hauler 6 | . 1 . . . . 4 . . . . . . . . . . . . . . . . . 1 . . . Recycler 2 | . . . . . . 1 . . . . . . . . . 1 . . . . . . . . . . . Minesweeper 1 | . . . . . . . . . . 1 . . . . . . . . . . . . . . . . . Mechanic 1 | . . . . . . . . . . . . . . . . . . . . . . . . . 1 . . Operator 1 | . . . . . . . . . . . . . . . . . . . 1 . . . . . . . . Watcher 6 | . . . . . . 1 . . . . 1 . . . . . . 1 . . . . . . . . 3 Swarmer 39 | . . 3 . . . . 6 2 . 3 . 4 2 . 5 . . . . . 4 2 5 . . 3 . Saboteur 2 | . . . . . . . . . . . . . . . . . . . . . . 1 . . 1 . . Grunt 135 | . 6 5 . . 1 5 . 7 . 8 3 . . . . . 3 2 . 2 . 66 3 5 9 2 8 Brawler 10 | . . . . . . . . . . . . . . . . . . . . . . 6 . . 3 . 1 Duelist 7 | . . . . . . . . . . . . . . . . . . . . 1 . 3 1 . 2 . . Protector 7 | . . . . . . . . . . . . . . . . . . . . . . 6 . . 1 . . Sentry 19 | . . . . . 1 1 1 1 . 1 3 . 1 . . . 2 . 2 1 . . 1 1 . 1 2 Demolisher 11 | . . . . . . . . . . . . . . . . . . . . . . . . 3 . 8 . Specialist 1 | . . . . . . . . . . . . . . . . . . . . . . 1 . . . . . Hunter 20 | . . . . . 1 1 . . . . . 1 1 . . . . 1 . . 2 2 3 3 . 3 2 Programmer 28 | . . . . . . 3 . 2 . . . . 1 . . . . . . . 1 9 1 3 . 3 5 Behemoth 2 | . . . . . . . . . . . . . . . 1 . . . . . . . 1 . . . . Cetus Guard 4 | . . . . . . . . . . . . . . . . . . 4 . . . . . . . . . Striker 17 | . . . . . . . . . . . . . . . . . . . . . . 5 . 4 . 8 . Executioner 5 | . . . . . . . . . . . . . . . . . . . . . . 5 . . . . . Decomposer 1 | . . . . . . . . . . . . . . . . . . . . 1 . . . . . . . Samaritan 6 | . . . . . . . 3 . . . . . . . . . . . . 3 . . . . . . . Thug 2 | . . . . . . . . . . . . . . . . . . 1 . . 1 . . . . . . Savage 1 | . . . . . . . . . . . . . . . . . . 1 . . . . . . . . . Butcher 2 | . . . . . . . . . 1 . . . . . . . . . . . 1 . . . . . . Marauder 1 | . . . . . . . . . . . . . . . . . . . . . . 1 . . . . . Best Kill Streak 19 | . 3 3 . . 1 5 4 8 1 4 3 4 3 . 5 1 2 5 1 3 4 19 5 5 17 7 16 Combat Bots Only 19 | . 2 3 . . 1 3 4 8 1 4 3 4 3 . 5 . 2 4 1 3 4 19 5 5 16 7 8 Max Kills in Single Turn 7 | . 2 2 . . 1 3 3 4 1 2 2 3 1 . 4 1 1 3 1 1 3 7 5 3 7 2 3 Gunslinging 1 | . . . . . . . . . . . . . . . . . . . . . . . 1 . . . . Exploded 7 | . 1 2 . . . 2 3 4 . 2 2 3 . . 4 . . 2 . . 3 7 5 3 6 2 2 Melee 1 | . . . . . . . . 1 . . . . . . . . . . . . . . . . . . . Uniques/NPCs Destroyed . | . . . . . . . . . . . . . . . . . . . . . . . . . . . . Combat | -11 -10 -10 -10 -9 -8 -7 -7 -7 -7 -6 -6 -6 -6 -6 -5 -5 -5 -5 -4 -4 -4 -4 -3 -3 -3 -2 -1 -------- Run | Scr Mat Min Exi Min Mat Fac Low Low Zio Pro Fac Low Low Dat Pro Fac Ext Cet Fac Upp Upp War Pro Res Qua Res Acc Damage Taken 33323 | . 264 234 . . 322 847 1204 705 325 843 296 262 515 . 596 . 1265 500 73 1085 468 2226 1445 3031 2826 7490 6501 Core 3918 | . 32 26 . . 40 105 122 85 135 94 66 . 69 . 86 . 120 . . 76 9 132 120 172 189 627 1613 Absorbed by Shields 1844 | . . . . . . . . . . . . . . . . . 74 . . . 135 1429 206 . . . . Reduced by Siege Mode 310 | . . . . . . . . . . . . . . . . . . . . . . . . . . . 310 Core Remaining (%) 72 | 100 . . . 76 92 . . . . 22 . . . . 74 . . 88 . . . . 70 . 72 56 . Volleys Fired 656 | 3 18 24 . 2 13 45 10 14 7 25 18 6 14 . 12 11 38 13 12 28 18 52 33 66 4 118 52 Largest 2 | 2 2 2 . 1 2 2 2 2 2 2 2 2 2 . 2 2 2 2 2 2 2 2 2 2 2 2 2 Hottest 480 | 60 60 40 . 30 83 108 56 101 101 143 180 180 170 . 170 105 105 68 70 70 70 176 176 480 94 214 98 Shots Fired 1189 | 6 36 44 . 2 26 79 16 23 17 41 33 11 28 . 23 18 58 24 24 56 34 102 62 108 8 215 95 Gun 718 | 6 36 41 . . 26 72 13 4 . . . . . . . . 24 22 24 56 33 17 57 22 . 186 79 Cannon 320 | . . . . . . 3 . 16 17 37 31 10 28 . 22 18 34 . . . . . . 83 . 21 . Launcher 151 | . . 3 . 2 . 4 3 3 . 4 2 1 . . 1 . . 2 . . 1 85 5 3 8 8 16 Special . | . . . . . . . . . . . . . . . . . . . . . . . . . . . . Kinetic 714 | 3 25 41 . . 13 35 13 20 17 20 10 . . . 9 18 44 22 24 56 33 . . 63 . 169 79 Thermal 247 | . . . . . 10 27 . . . 17 21 10 28 . 13 . 14 . . . . 17 21 31 . 38 . Explosive 147 | . . 3 . 2 . 4 3 3 . 4 2 1 . . 1 . . 2 . . 1 85 5 3 8 8 12 Electromagnetic 45 | 3 11 . . . 3 13 . . . . . . . . . . . . . . . . . 11 . . 4 Entropic 36 | . . . . . . . . . . . . . . . . . . . . . . . 36 . . . . Robot Hit Streak 35 | 2 6 3 . . 13 35 15 16 15 27 16 4 10 . 22 4 25 20 12 25 16 30 23 19 27 14 26 Robot Miss Streak 5 | 1 4 3 . . 2 2 3 1 4 2 4 2 1 . 1 2 1 2 . 1 1 5 3 3 1 3 2 Penetration Max 2 | . . . . . . 1 . . . . . . . . . . 1 1 1 1 1 . . . . 1 2 Secondary Targets 18 | . 2 . . . . . . . . . . . . . . . . 2 . 1 . . 2 1 . 8 2 Max Gunslinging Chain 1 | . 1 . . . . . . . . . . . . . . . . 1 . 1 . . 1 1 . 1 1 Capacitor 12 | . . . . . . . . . . . . . . . . . 12 . . . . . . . . . . Shots Hit Robots 785 | 3 22 20 . . 21 61 15 23 13 32 19 7 20 . 19 4 41 20 10 47 21 48 50 74 8 122 65 Core Hits 1441 | . 14 12 . . 6 35 19 39 6 46 24 9 7 . 11 3 13 30 7 17 17 722 49 69 142 64 80 Critical Hits 40 | . . . . . . . . 2 . . . . 1 . 1 1 3 1 1 5 4 3 4 3 . 2 9 Critical Kills 18 | . . . . . . . . 1 . . . . 1 . . 1 . . 1 2 3 1 1 3 . 1 3 Critical Parts Destroyed 21 | . . . . . . . . 1 . . . . . . 1 . 3 . . 3 1 2 3 . . 1 6 Melee Attacks 53 | . . . . . . 3 13 10 . . . . . . . . 7 . . . . . . . . . 20 Impact . | . . . . . . . . . . . . . . . . . . . . . . . . . . . . Slashing . | . . . . . . . . . . . . . . . . . . . . . . . . . . . . Piercing 53 | . . . . . . 3 13 10 . . . . . . . . 7 . . . . . . . . . 20 Sneak Attacks 4 | . . . . . . . 3 . . . . . . . . . 1 . . . . . . . . . . Combat Hostiles . | . . . . . . . . . . . . . . . . . . . . . . . . . . . . Follow-up Attacks . | . . . . . . . . . . . . . . . . . . . . . . . . . . . . Damage Inflicted 61840 | 170 304 493 . . 294 1620 827 1241 340 1403 823 388 621 . 891 128 1316 1169 284 1221 857 22925 3238 3489 5382 5665 6751 Guns 13792 | 28 237 274 . . 294 1137 215 84 . . . . . . . . 539 472 284 1221 546 455 1873 331 . 3614 2188 Cannons 6810 | . . . . . . . . 348 340 768 542 193 621 . 582 128 653 . . . . . . 2262 . 373 . Explosions 40610 | 142 67 219 . . . 478 321 649 . 635 281 195 . . 309 . . 697 . . 311 22470 1365 896 5380 1678 4517 Melee 612 | . . . . . . . 291 160 . . . . . . . . 115 . . . . . . . . . 46 Ramming 16 | . . . . . . 5 . . . . . . . . . . 9 . . . . . . . 2 . . Kinetic 13964 | . 132 274 . . 113 577 215 432 340 430 162 . . . 227 128 1120 472 284 1221 546 . . 1766 . 3337 2188 Thermal 4770 | 142 67 . . . 165 398 . . . 338 380 193 621 . 355 . 72 . . . . 455 444 490 . 650 . Explosive 40042 | . . 219 . . . 478 321 649 . 635 281 195 . . 309 . . 697 . . 311 22470 1365 896 5380 1678 4158 Electromagnetic 1007 | 28 105 . . . 16 162 . . . . . . . . . . . . . . . . . 337 . . 359 Impact . | . . . . . . . . . . . . . . . . . . . . . . . . . . . . Slashing . | . . . . . . . . . . . . . . . . . . . . . . . . . . . . Piercing 612 | . . . . . . . 291 160 . . . . . . . . 115 . . . . . . . . . 46 Entropic 1429 | . . . . . . . . . . . . . . . . . . . . . . . 1429 . . . . Highest Corruption 19 | . 2 2 2 2 . 12 12 19 19 19 . . . . . . 5 5 . . . 4 6 2 2 19 14 Average Corruption 8 | . 2 2 2 2 . 10 12 17 19 19 . . . . . . 5 5 . . . 3 5 1 2 11 6 Corruption Purged . | . . . . . . . . . . . . . . . . . . . . . . . . . . . . Effects 531 | . 4 6 8 2 . 51 44 50 21 58 . . . . . . 19 11 . . . 37 39 8 2 151 20 Message Errors 105 | . 3 2 3 1 . 9 9 12 4 10 . . . . . . 6 3 . . . 8 4 2 . 26 3 Matter Fused 94 | . . . . . . 14 6 8 2 11 . . . . . . 2 3 . . . 12 4 . . 31 1 Heat Flow Errors 66 | . 1 1 3 . . 3 7 7 2 7 . . . . . . 4 . . . . 5 9 3 . 11 3 Energy Discharges 60 | . . . . . . 4 7 5 2 3 . . . . . . 2 . . . . 5 4 1 1 23 3 Parts Rejected 6 | . . . . . . 2 1 . . 2 . . . . . . . . . . . . . . . 1 . Data Loss (minor) 59 | . . 3 2 1 . 4 6 4 1 4 . . . . . . 3 2 . . . 6 6 . 1 14 2 Data Loss (major) 17 | . . . . . . 2 1 2 1 2 . . . . . . . . . . . . 2 . . 6 1 Misfires 14 | . . . . . . 2 1 . 3 . . . . . . . . 1 . . . . 1 . . 6 . Alerts 4 | . . . . . . 1 . 1 . 2 . . . . . . . . . . . . . . . . . Misdirections 40 | . . . . . . 5 4 9 2 10 . . . . . . . . . . . . . . . 10 . Targeting Errors 59 | . . . . . . 5 2 1 4 6 . . . . . . 2 1 . . . 1 8 2 . 20 7 Weapon Failures 7 | . . . . . . . . 1 . 1 . . . . . . . 1 . . . . 1 . . 3 . Overload Shots 8 | . . . . . . . . . . . . . . . . . . . . . . . . 8 . . . Overflow Damage 673 | . . 6 . . . 8 . 7 4 20 12 . 19 . . . 12 12 . . 13 62 . 52 80 142 224 Projectiles 137 | . . . . . . . . . 4 20 12 . 19 . . . 12 . . . . . . 48 . 22 . Explosions 533 | . . 6 . . . 8 . 4 . . . . . . . . . 12 . . 13 62 . 4 80 120 224 Melee 3 | . . . . . . . . 3 . . . . . . . . . . . . . . . . . . . Knockbacks 29 | . . . . . . . . . . 4 3 . . . . 1 4 . . . . . . 17 . . . Impact . | . . . . . . . . . . . . . . . . . . . . . . . . . . . . Kinetic 29 | . . . . . . . . . . 4 3 . . . . 1 4 . . . . . . 17 . . . Secondary . | . . . . . . . . . . . . . . . . . . . . . . . . . . . . Self-Inflicted Damage 1311 | . 33 . . . . 21 38 29 . 17 63 11 . . 32 . . 40 . . 48 75 202 19 127 240 316 Shots 44 | . 1 . . . . 1 2 2 . 1 4 1 . . 1 . . 2 . . 2 4 9 1 4 5 4 Rammed 3 | . . . . . . 1 . . . . . . . . . . 1 . . . . . . . 1 . . Targets Rammed 4 | . . . . . . 1 . . . . . . . . . . 1 . . . . . . . 1 . 1 Kicked . | . . . . . . . . . . . . . . . . . . . . . . . . . . . . Crushed 1 | . . . . . . . . . . . . . . . . . . . . . . . . . . . 1 Highest Temperature 566 | 20 160 184 198 . 111 256 265 272 274 199 192 190 198 . 195 . 196 . . . . 197 193 566 . 213 149 Average Temperature 81 | 15 39 31 89 . 44 70 120 77 121 84 73 100 110 . 120 . 62 . . . . 73 56 126 . 72 26 Received Heat Transfer 2952 | . 132 69 . . 72 195 156 99 . 234 99 . 117 . 60 . 185 51 18 102 9 150 91 18 609 63 423 Effects 4 | . . . . . . . 1 . . . . . . . . . . . . . . . . 3 . . . Shutdowns 2 | . . . . . . . . . . . . . . . . . . . . . . . . 2 . . . Energy Bleed 1 | . . . . . . . 1 . . . . . . . . . . . . . . . . . . . . Damage (major) 1 | . . . . . . . . . . . . . . . . . . . . . . . . 1 . . . Siege Activations 5 | . . . . . . . . . . . . . . . . . . . . . . . . . . 1 4 Total Turns 130 | . . . . . . . . . . . . . . . . . . . . . . . . . . 16 114 Longest Duration 41 | . . . . . . . . . . . . . . . . . . . . . . . . . . 16 41 Robots Corrupted 3 | . . . . . . . . . . . . . . . . . . . . . . . . 1 . . 2 Combat Hostiles 3 | . . . . . . . . . . . . . . . . . . . . . . . . 1 . . 2 Parts Fried . | . . . . . . . . . . . . . . . . . . . . . . . . . . . . Impact Corruptions . | . . . . . . . . . . . . . . . . . . . . . . . . . . . . Robots Melted . | . . . . . . . . . . . . . . . . . . . . . . . . . . . . Combat Hostiles . | . . . . . . . . . . . . . . . . . . . . . . . . . . . . Parts Melted 7 | . . . . . 1 . . . . . 1 . 3 . . . . . . . . . . 2 . . . Heat Transferred 6499 | 200 50 . . . 370 814 . . . 535 522 250 900 . 550 . 50 . . . . 517 629 557 . 555 . Parts Sabotaged . | . . . . . . . . . . . . . . . . . . . . . . . . . . . . Parts Stolen . | . . . . . . . . . . . . . . . . . . . . . . . . . . . . Parts Stripped . | . . . . . . . . . . . . . . . . . . . . . . . . . . . . Power Chain Reactions 2 | 1 1 . . . . . . . . . . . . . . . . . . . . . . . . . . Missiles Intercepted 21 | . . . . . . . . . . . . . . . . . . . . . . . . . . 21 . Alert | -11 -10 -10 -10 -9 -8 -7 -7 -7 -7 -6 -6 -6 -6 -6 -5 -5 -5 -5 -4 -4 -4 -4 -3 -3 -3 -2 -1 ------- Run | Scr Mat Min Exi Min Mat Fac Low Low Zio Pro Fac Low Low Dat Pro Fac Ext Cet Fac Upp Upp War Pro Res Qua Res Acc Peak Influence 2085 | . 162 177 . . 77 232 . . . . 141 . . . . 35 330 401 300 . . . . 341 2085 1447 1672 Initial 1119 | . . 63 . . . 35 . . . . . . . . . . . 121 224 . . . . 54 153 1119 859 Average 497 | . 117 131 . . 22 85 . . . . 75 . . . . 14 109 291 208 . . . . 207 1746 1095 1091 Maximum Alert Level 5 | . . . . . . 1 . . . . . . . . . . 1 2 1 . . . . 1 5 4 5 Low Security (%) 47 | 100 100 100 . 100 100 93 . . . . 100 . . . . 100 80 36 22 . . . . 34 . . . Level 1 13 | . . . . . . 6 . . . . . . . . . . 19 43 77 . . . . 65 . . . Level 2 . | . . . . . . . . . . . . . . . . . . 20 . . . . . . . . . Level 3 19 | . . . . . . . . . . . . . . . . . . . . . . . . . . 51 65 Level 4 16 | . . . . . . . . . . . . . . . . . . . . . . . . . . 48 33 Level 5 . | . . . . . . . . . . . . . . . . . . . . . . . . . . . . High Security . | . . . . . . . . . . . . . . . . . . . . . . . . . . . . Max Security 1 | . . . . . . . . . . . . . . . . . . . . . . . . . 99 . . Squads Dispatched 36 | . 1 1 . . 1 6 . . . . 3 . . . . 1 4 . . . . . . 3 7 . 9 Investigation 7 | . . . . . . 2 . . . . 2 . . . . 1 1 . . . . . . 1 . . . Extermination 4 | . . . . . . 2 . . . . . . . . . . . . . . . . . . . . 2 Reinforcement 12 | . 1 . . . 1 2 . . . . 1 . . . . . 3 . . . . . . 2 . . 2 Assault 9 | . . 1 . . . . . . . . . . . . . . . . . . . . . . 6 . 2 Garrison 4 | . . . . . . . . . . . . . . . . . . . . . . . . . 1 . 3 Intercept . | . . . . . . . . . . . . . . . . . . . . . . . . . . . . Construction Impeded 5 | . . . . . . . . . . . . . . . . . 3 . . . . . . . . . 2 Haulers Reinforced 3 | . . . . . . 1 . . . . . . . . . . . . . . . . . 2 . . . Stealth | -11 -10 -10 -10 -9 -8 -7 -7 -7 -7 -6 -6 -6 -6 -6 -5 -5 -5 -5 -4 -4 -4 -4 -3 -3 -3 -2 -1 --------- Run | Scr Mat Min Exi Min Mat Fac Low Low Zio Pro Fac Low Low Dat Pro Fac Ext Cet Fac Upp Upp War Pro Res Qua Res Acc Distress Signals 29 | . . 1 . 1 . . . . . . 1 . . . . . 2 2 . . . 3 . 4 2 10 3 Communications Jammed . | . . . . . . . . . . . . . . . . . . . . . . . . . . . . Distress Signals . | . . . . . . . . . . . . . . . . . . . . . . . . . . . . Times Spotted 483 | . 7 14 . 1 3 22 9 11 5 16 8 5 8 . 6 . 18 14 2 7 9 129 18 29 45 47 50 Peak Tracking Total 22 | . 2 4 . 1 1 4 5 7 2 5 3 4 3 . 5 . 4 5 1 3 4 20 5 5 22 6 17 Tactical Retreats 27 | . . . . . . 1 2 . 3 3 . . . . . . 5 . . 1 . . . 1 . 5 6 Traps | -11 -10 -10 -10 -9 -8 -7 -7 -7 -7 -6 -6 -6 -6 -6 -5 -5 -5 -5 -4 -4 -4 -4 -3 -3 -3 -2 -1 ------- Run | Scr Mat Min Exi Min Mat Fac Low Low Zio Pro Fac Low Low Dat Pro Fac Ext Cet Fac Upp Upp War Pro Res Qua Res Acc Traps Triggered 11 | . 1 . . . 1 6 . . . . . . . . . . 2 . . . . . . 1 . . . Indirectly . | . . . . . . . . . . . . . . . . . . . . . . . . . . . . Trap Hack Attempts . | . . . . . . . . . . . . . . . . . . . . . . . . . . . . Triggered . | . . . . . . . . . . . . . . . . . . . . . . . . . . . . Disarmed . | . . . . . . . . . . . . . . . . . . . . . . . . . . . . Reprogrammed . | . . . . . . . . . . . . . . . . . . . . . . . . . . . . Reused 3 | . . . . . . . . . . . . . 1 . . . . . . 2 . . . . . . . Traps Extracted . | . . . . . . . . . . . . . . . . . . . . . . . . . . . . Installed 11 | . . . . . . . . . . 5 . . 4 . . . . . . 2 . . . . . . . Triggered 12 | . . . . . . . . . . 1 . . 1 . . . . . . 2 . 8 . . . . . Exploded 1 | . . . . . . 1 . . . . . . . . . . . . . . . . . . . . . Machines | -11 -10 -10 -10 -9 -8 -7 -7 -7 -7 -6 -6 -6 -6 -6 -5 -5 -5 -5 -4 -4 -4 -4 -3 -3 -3 -2 -1 ---------- Run | Scr Mat Min Exi Min Mat Fac Low Low Zio Pro Fac Low Low Dat Pro Fac Ext Cet Fac Upp Upp War Pro Res Qua Res Acc Machines Disabled 22 | . 1 2 . . . . 1 2 . . . . . . . 1 1 1 . . 1 . . 3 1 2 6 Max in Single Turn 2 | . 1 2 . . . . 1 1 . . . . . . . 1 . . . . 1 . . 1 1 1 1 Garrison Access 2 | . . . . . . . . . . . . . . . . . . . . . . . . 1 . 1 . Energy Cycler 1 | . . . . . . . . . . . . . . . . . . . . . . . . . . . 1 Machines Sabotaged . | . . . . . . . . . . . . . . . . . . . . . . . . . . . . Garrisons Compromised . | . . . . . . . . . . . . . . . . . . . . . . . . . . . . Overloaded Fab Kills . | . . . . . . . . . . . . . . . . . . . . . . . . . . . . Fab Network Shutdowns . | . . . . . . . . . . . . . . . . . . . . . . . . . . . . Hacking | -11 -10 -10 -10 -9 -8 -7 -7 -7 -7 -6 -6 -6 -6 -6 -5 -5 -5 -5 -4 -4 -4 -4 -3 -3 -3 -2 -1 --------- Run | Scr Mat Min Exi Min Mat Fac Low Low Zio Pro Fac Low Low Dat Pro Fac Ext Cet Fac Upp Upp War Pro Res Qua Res Acc Machines Accessed 31 | . . . 2 . . 6 1 1 . . 3 1 . 4 . 1 4 . 1 1 2 1 1 1 . . 1 Terminals 15 | . . . . . . 5 1 . . . 3 . . . . 1 3 . 1 . . . 1 . . . . Fabricators 1 | . . . . . . 1 . . . . . . . . . . . . . . . . . . . . . Repair Stations . | . . . . . . . . . . . . . . . . . . . . . . . . . . . . Recycling Units 1 | . . . . . . . . . . . . . . . . . 1 . . . . . . . . . . Scanalyzers . | . . . . . . . . . . . . . . . . . . . . . . . . . . . . Garrison Access 2 | . . . . . . . . . . . . . . . . . . . . . . . . 1 . . 1 Total Hacks 83 | . . . 2 . . 11 1 1 . . 7 1 . 28 . 2 12 . 10 1 2 1 1 2 . . 1 Successful 57 | . . . 2 . . 3 1 1 . . 2 1 . 28 . . 8 . 6 1 2 1 1 . . . . Failed 26 | . . . . . . 8 . . . . 5 . . . . 2 4 . 4 . . . . 2 . . 1 Catastrophic 9 | . . . . . . 3 . . . . 2 . . . . 1 1 . 1 . . . . . . . 1 Database Lockouts . | . . . . . . . . . . . . . . . . . . . . . . . . . . . . Manual 31 | . . . 1 . . 4 . . . . 7 . . . . 2 6 . 9 . . 2 . . . . . Terminals 39 | . . . . . . 9 1 . . . 7 . . . . 2 9 . 10 . . . 1 . . . . Fabricators 2 | . . . . . . 2 . . . . . . . . . . . . . . . . . . . . . Repair Stations . | . . . . . . . . . . . . . . . . . . . . . . . . . . . . Recycling Units 3 | . . . . . . . . . . . . . . . . . 3 . . . . . . . . . . Scanalyzers . | . . . . . . . . . . . . . . . . . . . . . . . . . . . . Garrison Access 3 | . . . . . . . . . . . . . . . . . . . . . . . . 2 . . 1 Terminal Hacks 47 | . . . 2 . . 1 1 1 . . 1 1 . 28 . . 3 . 4 1 2 1 1 . . . . Record 15 | . . . 1 . . . 1 . . . . . . 11 . . . . . . 1 . 1 . . . . Part Schematic 6 | . . . . . . . . . . . . . . 6 . . . . . . . . . . . . . Robot Schematic 8 | . . . . . . . . . . . . . . 8 . . . . . . . . . . . . . Prototype ID Bank 5 | . . . . . . . . . . . . . . 3 . . . . 2 . . . . . . . . Open Door 5 | . . . . . . . . 1 . . . 1 . . . . . . . 1 1 1 . . . . . Level Access Points 1 | . . . . . . . . . . . . . . . . . . . 1 . . . . . . . . Branch Access Points 2 | . . . . . . 1 . . . . 1 . . . . . . . . . . . . . . . . Unreport Threat 2 | . . . . . . . . . . . . . . . . . 2 . . . . . . . . . . Registered Components 1 | . . . . . . . . . . . . . . . . . . . 1 . . . . . . . . Zone Layout 1 | . . . . . . . . . . . . . . . . . 1 . . . . . . . . . . EX-Prototype ID Bank 1 | . . . 1 . . . . . . . . . . . . . . . . . . . . . . . . Fabricator Hacks 1 | . . . . . . 1 . . . . . . . . . . . . . . . . . . . . . Build 1 | . . . . . . 1 . . . . . . . . . . . . . . . . . . . . . Repair Station Hacks . | . . . . . . . . . . . . . . . . . . . . . . . . . . . . Recycling Unit Hacks 2 | . . . . . . . . . . . . . . . . . 2 . . . . . . . . . . Report Inventory 1 | . . . . . . . . . . . . . . . . . 1 . . . . . . . . . . Retrieve Components 1 | . . . . . . . . . . . . . . . . . 1 . . . . . . . . . . Scanalyzer . | . . . . . . . . . . . . . . . . . . . . . . . . . . . . Garrison Access Hacks . | . . . . . . . . . . . . . . . . . . . . . . . . . . . . Unauthorized Hacks 7 | . . . . . . 1 . . . . 1 . . . . . 3 . 2 . . . . . . . . Terminals 7 | . . . . . . 1 . . . . 1 . . . . . 3 . 2 . . . . . . . . Track 3 | . . . . . . . . . . . . . . . . . 2 . 1 . . . . . . . . Botnet 4 | . . . . . . 1 . . . . 1 . . . . . 1 . 1 . . . . . . . . Fabricators . | . . . . . . . . . . . . . . . . . . . . . . . . . . . . Repair Stations . | . . . . . . . . . . . . . . . . . . . . . . . . . . . . Recycling Units . | . . . . . . . . . . . . . . . . . . . . . . . . . . . . Scanalyzers . | . . . . . . . . . . . . . . . . . . . . . . . . . . . . Garrison Access . | . . . . . . . . . . . . . . . . . . . . . . . . . . . . Data Cores Recovered 1 | . . . . . . . . . . . . . . . . . . . 1 . . . . . . . . Used . | . . . . . . . . . . . . . . . . . . . . . . . . . . . . Hacking Detections 16 | . . . . . . 5 . . . . 3 . . . . 1 4 . 1 . . . . 1 . . 1 Full Trace Events 6 | . . . . . . 2 . . . . 2 . . . . 1 1 . . . . . . . . . . Feedback Events 1 | . . . . . . 1 . . . . . . . . . . . . . . . . . . . . . Corruption 1 | . . . . . . 1 . . . . . . . . . . . . . . . . . . . . . Feedback Blocked . | . . . . . . . . . . . . . . . . . . . . . . . . . . . . Robot Schematics Acquired 8 | . . . . . . . . . . . . . . 8 . . . . . . . . . . . . . Robots Built . | . . . . . . . . . . . . . . . . . . . . . . . . . . . . Matter . | . . . . . . . . . . . . . . . . . . . . . . . . . . . . Time . | . . . . . . . . . . . . . . . . . . . . . . . . . . . . Total Robot Build Rating . | . . . . . . . . . . . . . . . . . . . . . . . . . . . . Part Schematics Acquired 6 | . . . . . . . . . . . . . . 6 . . . . . . . . . . . . . Parts Built 1 | . . . . . . 1 . . . . . . . . . . . . . . . . . . . . . Matter 234 | . . . . . . 234 . . . . . . . . . . . . . . . . . . . . . Time 39 | . . . . . . 39 . . . . . . . . . . . . . . . . . . . . . Total Part Build Rating 7 | . . . . . . 7 . . . . . . . . . . . . . . . . . . . . . Parts Repaired . | . . . . . . . . . . . . . . . . . . . . . . . . . . . . Time . | . . . . . . . . . . . . . . . . . . . . . . . . . . . . Parts Recycled . | . . . . . . . . . . . . . . . . . . . . . . . . . . . . Recycled Matter . | . . . . . . . . . . . . . . . . . . . . . . . . . . . . Retrieved Matter . | . . . . . . . . . . . . . . . . . . . . . . . . . . . . Retrieved Components 2 | . . . . . . . . . . . . . . . . . 2 . . . . . . . . . . Parts Scanalyzed . | . . . . . . . . . . . . . . . . . . . . . . . . . . . . Part Schematics Acquired . | . . . . . . . . . . . . . . . . . . . . . . . . . . . . Parts Damaged . | . . . . . . . . . . . . . . . . . . . . . . . . . . . . Bothacking | -11 -10 -10 -10 -9 -8 -7 -7 -7 -7 -6 -6 -6 -6 -6 -5 -5 -5 -5 -4 -4 -4 -4 -3 -3 -3 -2 -1 ------------ Run | Scr Mat Min Exi Min Mat Fac Low Low Zio Pro Fac Low Low Dat Pro Fac Ext Cet Fac Upp Upp War Pro Res Qua Res Acc Used RIF Installer . | . . . . . . . . . . . . . . . . . . . . . . . . . . . . Robots Hacked . | . . . . . . . . . . . . . . . . . . . . . . . . . . . . Non-combat . | . . . . . . . . . . . . . . . . . . . . . . . . . . . . Combat . | . . . . . . . . . . . . . . . . . . . . . . . . . . . . Robot Hacks Applied . | . . . . . . . . . . . . . . . . . . . . . . . . . . . . Relay Couplers Released 6 | . . . . . . . . . . . . . . . . . . . . . . . . 3 . 3 . Machine Destruction 6 | . . . . . . . . . . . . . . . . . . . . . . . . 3 . 3 . Robots Rewired 19 | . . . . . . . . . . . . . . . . . 14 . . . . 5 . . . . . Allies Hacked 1 | . . . . . . . . . . . . . . . . . . . . . . . 1 . . . . Hacks Repelled . | . . . . . . . . . . . . . . . . . . . . . . . . . . . . Allies | -11 -10 -10 -10 -9 -8 -7 -7 -7 -7 -6 -6 -6 -6 -6 -5 -5 -5 -5 -4 -4 -4 -4 -3 -3 -3 -2 -1 -------- Run | Scr Mat Min Exi Min Mat Fac Low Low Zio Pro Fac Low Low Dat Pro Fac Ext Cet Fac Upp Upp War Pro Res Qua Res Acc Total Allies 28 | . . 4 . . . . . . . . . . . . 1 . 18 . . . . 5 . . . . . Largest Group 11 | . . 3 1 1 1 . . . . . . . . . 1 . 11 10 1 . . 5 5 . . . . Highest-Rated Group 316 | . . 40 31 31 31 . . . . . . . . . 94 . 316 278 26 . . 270 270 . . . . Highest-Rated Ally 156 | . . 31 31 31 31 . . . . . . . . . 94 . 156 37 26 . . 60 60 . . . . Total Orders 15 | . . . . . . . . . . . . . . . . 1 2 . . . . 9 . 2 . . 1 STAY 6 | . . . . . . . . . . . . . . . . . 1 . . . . 5 . . . . . FOLLOW 5 | . . . . . . . . . . . . . . . . . 1 . . . . 4 . . . . . EXPLORE 1 | . . . . . . . . . . . . . . . . . . . . . . . . 1 . . . RETURN 3 | . . . . . . . . . . . . . . . . 1 . . . . . . . 1 . . 1 Ally Attacks 303 | . . 26 . 5 2 . . . . . . . . . 7 . 76 52 . . . 109 26 . . . . Total Damage 9302 | . . 336 . 41 43 . . . . . . . . . 300 . 2115 1123 . . . 4370 974 . . . . Kills 52 | . . 4 . 2 . . . . . . . . . . . . 17 7 . . . 18 4 . . . . Allies Corrupted . | . . . . . . . . . . . . . . . . . . . . . . . . . . . . Allies Melted 1 | . . . . 1 . . . . . . . . . . . . . . . . . . . . . . . Turrets Deployed 3 | . . . . . . . . . . . . . . . . . . 1 . . . 2 . . . . . Intel | -11 -10 -10 -10 -9 -8 -7 -7 -7 -7 -6 -6 -6 -6 -6 -5 -5 -5 -5 -4 -4 -4 -4 -3 -3 -3 -2 -1 ------- Run | Scr Mat Min Exi Min Mat Fac Low Low Zio Pro Fac Low Low Dat Pro Fac Ext Cet Fac Upp Upp War Pro Res Qua Res Acc Robot Analysis Total . | . . . . . . . . . . . . . . . . . . . . . . . . . . . . Derelict Logs Recovered 10 | . . 1 . . . . 1 1 . 1 . 3 1 . 2 . . . . . . . . . . . . Drone Launches 4 | . . . . . . . . . . . . . . . . 1 . . . . . . . 2 . . 1 Drone Recoveries 3 | . . . . . . . . . . . . . . . . 1 . . . . . . . 2 . . . Exploration | -11 -10 -10 -10 -9 -8 -7 -7 -7 -7 -6 -6 -6 -6 -6 -5 -5 -5 -5 -4 -4 -4 -4 -3 -3 -3 -2 -1 ------------- Run | Scr Mat Min Exi Min Mat Fac Low Low Zio Pro Fac Low Low Dat Pro Fac Ext Cet Fac Upp Upp War Pro Res Qua Res Acc Turns Passed 27154 | 82 370 673 772 199 341 1841 1002 881 325 988 747 680 1257 145 942 729 1201 302 517 914 899 3426 1035 1619 175 4302 790 Spaces Moved 13497 | 54 218 390 507 128 171 892 520 491 187 488 379 355 650 79 507 367 501 127 254 446 460 1480 470 675 78 2156 467 Core 264 | 8 . . . . . . . . . . . . . . . . . . . . . 2 . . . . 254 Treads 8655 | . . . . . 50 892 338 . . 277 3 . . . . 267 501 127 254 446 460 1478 470 675 78 2156 183 Legs 4548 | 46 218 390 507 128 121 . 182 491 187 211 376 355 650 79 507 100 . . . . . . . . . . . Wheels . | . . . . . . . . . . . . . . . . . . . . . . . . . . . . Hover . | . . . . . . . . . . . . . . . . . . . . . . . . . . . . Flight 30 | . . . . . . . . . . . . . . . . . . . . . . . . . . . 30 Fastest Speed 40 | 50 120 150 150 150 150 177 160 160 160 160 155 185 155 185 155 155 190 180 180 160 180 180 160 160 152 145 40 Average Speed 173 | 114 130 150 150 150 160 177 176 160 160 181 173 185 184 185 176 180 190 189 180 178 180 193 191 193 185 169 95 Slowest Speed 1550 | 150 150 150 150 150 180 210 190 160 160 220 220 185 185 185 185 190 190 190 180 180 180 1550 200 200 190 220 165 Overloaded Moves . | . . . . . . . . . . . . . . . . . . . . . . . . . . . . Propulsion Burnouts . | . . . . . . . . . . . . . . . . . . . . . . . . . . . . Robots Hopped . | . . . . . . . . . . . . . . . . . . . . . . . . . . . . Cave-ins Triggered 4 | . . . . . . . . . . . . . . . . . 1 . . . . . . . . 2 1 Exploration Rate (%) 44 | 4 39 67 76 33 17 32 68 61 12 59 11 54 74 68 66 9 65 56 10 55 52 90 64 24 17 41 15 Regions Visited 27 Branch Regions 18 Pre-discovered Areas 5 | . . . 1 . . . . . . 1 . 1 1 1 . . . . . . . . . . . . . Known Exits Taken 8 | . . . . . . 1 1 1 . 1 1 1 . . . . . . . . . . 1 . . 1 . Unknown Exits Taken 19 | 1 1 1 1 1 1 . . . 1 . . . 1 1 1 1 1 1 1 1 1 1 . 1 1 . . Scrap Searched 30 | . . 1 . 1 . . 1 3 . 2 . 3 11 . 1 . . . . 4 2 . 1 . . . . Spaces Dug 97 | . . . . . . 1 3 . . . 5 . 2 . . 4 11 . 9 . 1 . . 6 . 22 33 Terrain Destroyed 1546 | 2 2 11 . 18 . 61 60 29 3 80 32 31 9 . 35 13 31 63 14 28 45 437 123 71 53 163 132 Melee 20 | . . . . . . 1 3 . . . . . . . . . 3 . . . . . . . . . 13 Projectile 279 | . . . . . . 6 . 2 3 1 9 5 9 . 4 13 28 . 14 28 7 . 8 23 . 102 17 AOE 1247 | 2 2 11 . 18 . 54 57 27 . 79 23 26 . . 31 . . 63 . . 38 437 115 48 53 61 102 Terrain Rammed . | . . . . . . . . . . . . . . . . . . . . . . . . . . . . Walls Destroyed . | . . . . . . . . . . . . . . . . . . . . . . . . . . . . Machines Disabled . | . . . . . . . . . . . . . . . . . . . . . . . . . . . . Actions | -11 -10 -10 -10 -9 -8 -7 -7 -7 -7 -6 -6 -6 -6 -6 -5 -5 -5 -5 -4 -4 -4 -4 -3 -3 -3 -2 -1 --------- Run | Scr Mat Min Exi Min Mat Fac Low Low Zio Pro Fac Low Low Dat Pro Fac Ext Cet Fac Upp Upp War Pro Res Qua Res Acc Total 15819 | 66 275 438 521 132 211 1067 564 542 198 541 435 366 678 78 530 416 691 165 289 507 496 1847 532 869 94 2594 677 Wait 728 | . 13 11 1 1 5 65 3 15 . 3 13 1 3 . 1 25 17 . 21 24 1 203 5 48 6 138 105 Move 13468 | 53 217 389 506 127 170 891 519 490 186 487 378 354 649 78 506 366 499 126 253 445 459 1479 469 674 77 2154 467 Hop . | . . . . . . . . . . . . . . . . . . . . . . . . . . . . Pick Up 117 | 4 8 1 5 . 9 19 2 3 . 5 5 1 . . 1 1 4 3 . 3 1 6 4 10 . 21 1 Fast Attach 204 | 6 4 . . . 6 7 4 2 1 5 8 . 3 . 4 6 10 8 2 1 6 21 7 28 1 62 2 Attach 59 | . 1 1 . . 1 5 5 2 2 4 1 1 . . 1 1 2 . . . . 1 4 3 3 9 12 Detach 43 | . 3 . . . 1 3 2 1 1 1 . . . . . 1 . 1 . . 2 3 1 1 . 15 7 Swap 126 | . 2 8 2 2 2 14 5 3 1 5 2 2 1 . 2 . 5 2 1 1 3 8 7 12 2 26 8 Drop 197 | . 9 4 7 . 4 12 1 2 . 1 10 1 4 . 3 5 11 12 . 3 6 21 2 27 . 50 2 Fire 656 | 3 18 24 . 2 13 45 10 14 7 25 18 6 14 . 12 11 38 13 12 28 18 52 33 66 4 118 52 Melee 53 | . . . . . . 3 13 10 . . . . . . . . 7 . . . . . . . . . 20 Ram . | . . . . . . . . . . . . . . . . . . . . . . . . . . . . Kick . | . . . . . . . . . . . . . . . . . . . . . . . . . . . . Crush 4 | . . . . . . 1 . . . . . . . . . . 1 . . . . . . . 1 . 1 Escape Stasis 6 | . . . . . . 2 . . . . . . . . . . 3 . . . . . . . . 1 . Rewire 147 | . . . . . . . . . . . . . . . . . 94 . . . . 53 . . . . . Trap 11 | . . . . . . . . . . 5 . . 4 . . . . . . 2 . . . . . . . Miscellaneous . | . . . . . . . . . . . . . . . . . . . . . . . . . . . . Route ------- -11/Scrapyard -10/Materials -10/Mines (discovered 2 exits: [*Mat] / *Exi) -10/Exiles -9/Mines -8/Materials -7/Factory (discovered 4 exits: *Fac / Sto / *Low x2) -7/Lower Caves -7/Lower Caves -7/Zion -6/Proximity Caves -6/Factory (discovered 2 exits: *Low x2) -6/Lower Caves -6/Lower Caves -6/Data Miner -5/Proximity Caves -5/Factory -5/Extension (discovered 2 exits: *Fac / *Cet) -5/Cetus (discovered 2 exits: *Fac / [*Arc]) -4/Factory (discovered 5 exits: Res x4 / *Upp) -4/Upper Caves -4/Upper Caves (discovered 2 exits: *Res / *War) -4/Warlord -3/Proximity Caves -3/Research -3/Quarantine -2/Research -1/Access History --------- Turn | Location | Event 15 | -11/Scrapyard | Discovered new exit (range 16) 83 | -11/Scrapyard | Entered Materials 228 | -10/Materials | Discovered new exit (range 16) 311 | -10/Materials | Build established: Mutant 453 | -10/Materials | Entered Mines 581 | -10/Mines | Assisted by bots powering up and referring to "LRC-V3" 869 | -10/Mines | Learned Materials emergency access door positions 973 | -10/Mines | Met a Derelict testing a Signal Generator 979 | -10/Mines | Discovered new exit (range 9) 1116 | -10/Mines | Deemed a non-threat by the Exiles lab entrance 1118 | -10/Mines | Discovered new exit (range 5) 1126 | -10/Mines | Entered Exiles 1126 | -10/Exiles | Accompanied by 1 ally 1168 | -10/Exiles | Met 8R-AWN 1192 | -10/Exiles | Met EX-HEX 1236 | -10/Exiles | Met EX-BIN 1339 | -10/Exiles | Met EX-DEC 1347 | -10/Exiles | Learned location of Zion (-7) 1408 | -10/Exiles | Visited The Gauntlet 1543 | -10/Exiles | Discovered new exit (range 14) 1680 | -10/Exiles | Aligned with FarCom system 1681 | -10/Exiles | Given EX-Vault access code 1717 | -10/Exiles | Opened EX-Vault 1738 | -10/Exiles | Found Deploy-a-Sentry 1741 | -10/Exiles | Found Deploy-a-Sentry 1746 | -10/Exiles | Found Deploy-a-Sentry 1780 | -10/Exiles | Warned to stay clear of 0b10 Research branches 1898 | -10/Exiles | Left Exiles lab with Deploy-a-Sentry 1898 | -10/Exiles | Entered Mines 1898 | -9/Mines | Accompanied by 1 ally 1908 | -9/Mines | Assembled infested the area 1913 | -9/Mines | Assisted by a Guerilla fighting off Assembled 2069 | -9/Mines | Discovered new exit (range 14) 2097 | -9/Mines | Entered Materials 2097 | -8/Materials | Accompanied by 1 ally 2097 | -8/Materials | Evolved 4 slots: Utility x4 2427 | -8/Materials | Discovered new exit (range 6) 2438 | -8/Materials | Entered Factory 2438 | -7/Factory | Evolved 2 slots: Utility x2 2633 | -7/Factory | Found Prototype Launcher 2633 | -7/Factory | Identified Rocket Array 2647 | -7/Factory | Found Rocket Array 2649 | -7/Factory | Found Rocket Array 3012 | -7/Factory | Found Rocket Array 3289 | -7/Factory | Build established: Hauler-Mutant 3316 | -7/Factory | System corruption reached 10% 3475 | -7/Factory | Discovered new exit (range 21) 3541 | -7/Factory | Identified exit to Factory 3878 | -7/Factory | Fabricated HERF Cannon (x1) 4059 | -7/Factory | Identified exit to Storage 4059 | -7/Factory | Identified exit to Lower Caves 4279 | -7/Factory | Entered Lower Caves 4513 | -7/Lower Caves | Attracted the attention of an 0b10 checkpoint 4588 | -7/Lower Caves | Learned 4 Factory zone layouts 4645 | -7/Lower Caves | Spotted B-75 Beast 4981 | -7/Lower Caves | Lost 3 parts (1p1n1u) 5146 | -7/Lower Caves | Discovered new exit (range 5) 5279 | -7/Lower Caves | Identified exit to Lower Caves 5281 | -7/Lower Caves | Entered another Lower Caves area 5675 | -7/Lower Caves | Attracted the attention of an 0b10 base 5717 | -7/Lower Caves | Destroyed 8 combat bots 5949 | -7/Lower Caves | Learned Factory stockpile data 6010 | -7/Lower Caves | Discovered new exit (range 10) 6077 | -7/Lower Caves | Identified exit to Zion 6162 | -7/Lower Caves | Entered Zion 6191 | -7/Zion | Given the Hacking Drone Bay 6191 | -7/Zion | Found Prototype Device 6191 | -7/Zion | Identified Hacking Drone Bay 6223 | -7/Zion | Attacked by Zionites 6282 | -7/Zion | Core integrity fell below 50% 6310 | -7/Zion | Discovered new exit (range 13) 6393 | -7/Zion | Spotted VW-XGV(B) 6487 | -7/Zion | Entered Proximity Caves 6513 | -6/Proximity Caves | Attracted the attention of an 0b10 checkpoint 6804 | -6/Proximity Caves | Lost 4 parts (2n1u1w) 7348 | -6/Proximity Caves | Spotted B-75 Beast 7468 | -6/Proximity Caves | Discovered exit to Factory (range 3) 7475 | -6/Proximity Caves | Entered Factory 7475 | -6/Factory | Evolved 2 slots: Utility x2 7748 | -6/Factory | Identified exit to Lower Caves 8093 | -6/Factory | Found Hvy. Reflective Plating 8222 | -6/Factory | Entered Lower Caves 8476 | -6/Lower Caves | Build established: Mutant 8483 | -6/Lower Caves | Spotted B-75 Beast 8572 | -6/Lower Caves | Learned Factory terminal intel 8576 | -6/Lower Caves | Identified exit to Lower Caves 8902 | -6/Lower Caves | Entered another Lower Caves area 9052 | -6/Lower Caves | Encountered a Warlord checkpoint 9690 | -6/Lower Caves | Attracted the attention of an 0b10 checkpoint 10133 | -6/Lower Caves | Discovered new exit (range 15) 10159 | -6/Lower Caves | Entered Data Miner 10159 | -6/Data Miner | Discovered new exit (range 6) 10195 | -6/Data Miner | Met Data Miner 10226 | -6/Data Miner | Learned location of Section 7 (-3) 10226 | -6/Data Miner | Acquired the access code to Warlord's prototype stash 10258 | -6/Data Miner | Received God Mode back door access code from Data Miner 10304 | -6/Data Miner | Entered Proximity Caves 10476 | -5/Proximity Caves | Learned Factory garrison access intel 10826 | -5/Proximity Caves | Spotted B-75 Beast 10828 | -5/Proximity Caves | Escorted by Enhanced Grunt 11013 | -5/Proximity Caves | Destroyed B-75 Beast 11043 | -5/Proximity Caves | Lost 3 parts (1p2u) 11105 | -5/Proximity Caves | Discovered new exit (range 11) 11125 | -5/Proximity Caves | Learned Factory garrison access intel 11246 | -5/Proximity Caves | Entered Factory 11246 | -5/Factory | Evolved 2 slots: Utility x2 11247 | -5/Factory | Loaded intel: 22 terminal locations 11248 | -5/Factory | Loaded intel: 4 garrison access locations 11501 | -5/Factory | Incoming investigation squad redirected 11962 | -5/Factory | Discovered new exit (range 6) 11975 | -5/Factory | Entered Extension 12093 | -5/Extension | Rescued A7 12163 | -5/Extension | Rescued a captive Derelict 12265 | -5/Extension | Found Quantum Capacitor 12281 | -5/Extension | Incoming investigation squad redirected 12512 | -5/Extension | Crushed by falling debris 12927 | -5/Extension | Build established: Commander-Mutant 13046 | -5/Extension | Rescued a captive Derelict 13095 | -5/Extension | Rescued a captive Derelict 13124 | -5/Extension | Discovered new exit (range 10) 13126 | -5/Extension | Discovered new exit (range 6) 13176 | -5/Extension | Entered Cetus 13176 | -5/Cetus | Accompanied by 10 allies 13201 | -5/Cetus | Spotted Cetus Guard 13201 | -5/Cetus | Spotted Cetus Guard 13205 | -5/Cetus | Spotted Cetus Guard 13213 | -5/Cetus | Allies destroyed Cetus Guard 13219 | -5/Cetus | Allies destroyed Cetus Guard 13222 | -5/Cetus | Allies destroyed Cetus Guard 13349 | -5/Cetus | Discovered new exit (range 15) 13383 | -5/Cetus | Spotted Cetus Guard 13383 | -5/Cetus | Spotted Cetus Guard 13386 | -5/Cetus | DAS Turret deployed 13387 | -5/Cetus | Spotted Cetus Guard 13392 | -5/Cetus | Destroyed Cetus Guard 13395 | -5/Cetus | Destroyed Cetus Guard 13398 | -5/Cetus | Spotted Cetus Guard 13404 | -5/Cetus | Destroyed Cetus Guard 13416 | -5/Cetus | Destroyed Cetus Guard 13438 | -5/Cetus | Discovered new exit (range 15) 13448 | -5/Cetus | Met Revision 17 13478 | -5/Cetus | Entered Factory 13478 | -4/Factory | Accompanied by 1 ally 13478 | -4/Factory | Evolved 2 slots: Utility x2 13479 | -4/Factory | Loaded intel: 4 garrison access locations 13506 | -4/Factory | Build established: Scavenger-Mutant 13841 | -4/Factory | Identified exit to Research 13935 | -4/Factory | Discovered new exit (range 15) 13995 | -4/Factory | Entered Upper Caves 14823 | -4/Upper Caves | Attracted the attention of an 0b10 checkpoint 14889 | -4/Upper Caves | Discovered new exit (range 7) 14909 | -4/Upper Caves | Entered another Upper Caves area 14957 | -4/Upper Caves | Discovered exit to Research (range 13) 15483 | -4/Upper Caves | Found Alien Artifact 15686 | -4/Upper Caves | Encountered a Warlord checkpoint 15687 | -4/Upper Caves | Discovered new exit (range 3) 15808 | -4/Upper Caves | Entered Warlord 16348 | -4/Warlord | Visited the Vortex Lab 16356 | -4/Warlord | Warlord's base attacked by MAIN.C 16364 | -4/Warlord | Found Prototype Energy Gun 16590 | -4/Warlord | Met Warlord 16617 | -4/Warlord | Opened Warlord's prototype stash 16628 | -4/Warlord | Found Prototype Device 16628 | -4/Warlord | Identified Exp. Cloaking Device 16637 | -4/Warlord | Found Prototype Processor 16637 | -4/Warlord | Identified Exp. Armor Integrity Analyzer 16641 | -4/Warlord | Found Prototype Device 16641 | -4/Warlord | Identified Exp. Focal Shield 16706 | -4/Warlord | Warlord forces counterattacked 16754 | -4/Warlord | Spotted Executioner 16754 | -4/Warlord | Spotted Striker 16774 | -4/Warlord | Destroyed Executioner 16821 | -4/Warlord | Spotted Executioner 16889 | -4/Warlord | DAS Turret deployed 16903 | -4/Warlord | Spotted Executioner 16913 | -4/Warlord | Destroyed Executioner 16934 | -4/Warlord | Destroyed 9 combat bots 17007 | -4/Warlord | Spotted Striker 17019 | -4/Warlord | Destroyed Striker 17075 | -4/Warlord | Spotted Striker 17099 | -4/Warlord | Build established: Commander-Mutant 17101 | -4/Warlord | Destroyed 8 combat bots 17168 | -4/Warlord | Spotted Striker 17209 | -4/Warlord | Destroyed 7 combat bots 17234 | -4/Warlord | Spotted Striker 17401 | -4/Warlord | Spotted Striker 17404 | -4/Warlord | Destroyed 2J-JS9(B) 17414 | -4/Warlord | Allies destroyed Striker 17449 | -4/Warlord | Spotted Executioner 17450 | -4/Warlord | Spotted Executioner 17457 | -4/Warlord | Destroyed Executioner 17457 | -4/Warlord | Destroyed Executioner 17478 | -4/Warlord | Destroyed 19 combat bots 17495 | -4/Warlord | Build established: Scavenger-Mutant 17534 | -4/Warlord | DAS Turret deployed 17553 | -4/Warlord | Spotted Striker 17555 | -4/Warlord | Spotted Striker 17566 | -4/Warlord | Destroyed Striker 17566 | -4/Warlord | Destroyed Striker 17587 | -4/Warlord | Destroyed 9 combat bots 17629 | -4/Warlord | Spotted Striker 17632 | -4/Warlord | Spotted Striker 17643 | -4/Warlord | Destroyed Striker 17647 | -4/Warlord | Allies destroyed Striker 17666 | -4/Warlord | Spotted Striker 17672 | -4/Warlord | Allies destroyed Striker 17692 | -4/Warlord | Destroyed 15 combat bots 17796 | -4/Warlord | Spotted Executioner 17805 | -4/Warlord | Spotted Striker 17812 | -4/Warlord | Destroyed Executioner 17817 | -4/Warlord | Destroyed Striker 17853 | -4/Warlord | Destroyed 15 combat bots 17862 | -4/Warlord | Lost 3 parts (3u) 18847 | -4/Warlord | Identified Vortex Rifle 18874 | -4/Warlord | Found Vortex Rifle 19035 | -4/Warlord | Build established: Commander-Mutant 19137 | -4/Warlord | Discovered new exit (range 8) 19234 | -4/Warlord | Entered Proximity Caves 19234 | -3/Proximity Caves | Accompanied by 5 allies 19334 | -3/Proximity Caves | Spotted B-86 Titan 19349 | -3/Proximity Caves | Destroyed B-86 Titan 19354 | -3/Proximity Caves | Attracted the attention of an 0b10 checkpoint 19378 | -3/Proximity Caves | P-80 Master assimilated allied Archangel 7a 19673 | -3/Proximity Caves | Build established: Mutant 20133 | -3/Proximity Caves | Lost 5 parts (5u) 20181 | -3/Proximity Caves | Discovered exit to Research (range 8) 20269 | -3/Proximity Caves | Entered Research 20269 | -3/Research | Evolved 2 slots: Utility x2 20469 | -3/Research | Revision forces began assault on 0b10 20509 | -3/Research | Met up with Revision 17++ 20757 | -3/Research | Build established: Scavenger-Mutant 20969 | -3/Research | Research terminal network offline 21192 | -3/Research | Spotted Striker 21215 | -3/Research | Destroyed Striker 21254 | -3/Research | Spotted Striker 21256 | -3/Research | Spotted Striker 21256 | -3/Research | Destroyed Striker 21277 | -3/Research | Destroyed Striker 21374 | -3/Research | Lost 3 parts (2u1w) 21646 | -3/Research | Spotted Striker 21648 | -3/Research | Destroyed Striker 21871 | -3/Research | Discovered new exit (range 8) 21888 | -3/Research | Entered Quarantine 21889 | -3/Quarantine | Maximum security lockdown engaged 22011 | -3/Quarantine | Garrison activated, responded to threat 22036 | -3/Quarantine | Destroyed 16 combat bots 22058 | -3/Quarantine | Discovered new exit (range 3) 22063 | -3/Quarantine | Entered Research 22063 | -2/Research | Warlord forces began assault on 0b10 22063 | -2/Research | Evolved 2 slots: Utility x2 22092 | -2/Research | Lost 13 parts (1p1n9u2w) 22173 | -2/Research | Research machine network offline 22231 | -2/Research | Found Prototype Launcher 22231 | -2/Research | Identified Enh. Gamma Bomb Array 22338 | -2/Research | Build established: Mutant 22389 | -2/Research | Borebot progress halted 22610 | -2/Research | Borebot progress halted 22867 | -2/Research | Found Prototype Processor 22867 | -2/Research | Identified Exp. Core Analyzer 22871 | -2/Research | Found Prototype Processor 22871 | -2/Research | Identified Exp. Targeting Computer 22903 | -2/Research | Found Prototype Device 22903 | -2/Research | Identified Adv. Kinecellerator 22934 | -2/Research | Spotted Striker 22955 | -2/Research | Spotted Striker 22959 | -2/Research | Spotted Striker 23139 | -2/Research | Build established: Scavenger-Mutant 23173 | -2/Research | Discovered new exit (range 13) 23217 | -2/Research | Spotted Striker 23220 | -2/Research | Spotted Striker 23226 | -2/Research | Destroyed Striker 23241 | -2/Research | Destroyed Striker 23280 | -2/Research | Lost 3 parts (3u) 23374 | -2/Research | Found Enh. Force Lance 23452 | -2/Research | Identified Dimensional Node Initializer 23452 | -2/Research | Initialized slip node 23503 | -2/Research | Crushed by falling debris 23772 | -2/Research | Warlord destroyed during the assault 24206 | -2/Research | Spotted Striker 24245 | -2/Research | Found Adv. Kinecellerator 24437 | -2/Research | Spotted Striker 24459 | -2/Research | Destroyed Striker 24602 | -2/Research | Spotted Striker 24604 | -2/Research | Spotted Striker 24611 | -2/Research | Spotted Striker 24635 | -2/Research | Destroyed Striker 24641 | -2/Research | Destroyed Striker 24647 | -2/Research | Destroyed Striker 24698 | -2/Research | Destroyed 7 combat bots 24702 | -2/Research | Lost 7 parts (1p6u) 24735 | -2/Research | Spotted Striker 24793 | -2/Research | Spotted Striker 24830 | -2/Research | Destroyed Striker 24958 | -2/Research | Crushed by falling debris 24959 | -2/Research | System corruption reached 10% 24966 | -2/Research | Found Hvy. Reflective Plating 25038 | -2/Research | Spotted Striker 25107 | -2/Research | Destroyed Striker 25123 | -2/Research | Lost 5 parts (5u) 25206 | -2/Research | Found Prototype Device 25206 | -2/Research | Identified Thermal Barrier 25930 | -2/Research | Borebot progress halted 26363 | -2/Research | Identified exit to Access 26365 | -2/Research | Entered Access 26365 | -1/Access | Evolved 2 slots: Utility x2 26639 | -1/Access | Garrison activated, responded to threat 26681 | -1/Access | Lost 3 parts (3u) 26915 | -1/Access | First assault squad dispatched 26928 | -1/Access | Energy Cycler disabled 26943 | -1/Access | Released all parts (12) 26963 | -1/Access | Destroyed 8 combat bots 26974 | -1/Access | Lost 9 parts (1p1n4u3w) 26989 | -1/Access | Crushed by falling debris 27072 | -1/Access | Core integrity fell below 50% 27072 | -1/Access | System corruption reached 10% 27132 | -1/Access | Incoming assault squad redirected 27152 | -1/Access | Core integrity fell below 20% 27155 | -1/Access | Destroyed by G-73 Enforcer with Phase Gun Last Messages --------------- 27150_ Wave Collapse Detector explodes. 27150_ P-80 Master destroyed. 27150_ Enh. Force Lance destroyed. 27150_ Destroyed Enh. Force Lance. 27150_ Hacking Drone Bay destroyed. 27150_ Destroyed Hacking Drone Bay. 27150_ P-80 Master destroyed. 27150_ Slug penetrates Earth. 27151_ The unstable cave ceiling collapses. 27151_ Penetrated by Slug. 27154_ &0F:XP XQTY7WC 26C0RN%:FVKEA5L#ZG 27154_ Penetrated by Slug. 27154_ Slug penetrates Earth. 27154_ Penetrated by Slug. 27155_ C-30 ARC bursts open, deploying its payload. 27155_ G-73 Enforcer unfolds itself. 27155_ B-74 Champion unfolds itself. 27155_ L-61 Swordsman unfolds itself. 27155_ B-74 Champion unfolds itself. 27155_ M-36 Artificer unfolds itself. Map ----- +----------------------------------------------------+ | #???????????# "" # | | """ """ """ """ #???????????# "" # | | """"""" """"""" #???????????# # | | ??"""""" """"""" #???????????# # | | ?????"" """"" #???????????# # | | ??"""""" """"""" #???????????# = + | | """"""" """"""" #???????????##############+# | | """ """ """ """ w #??????????????????????? | | #####?????????????????# | | #?????????????????# | | #?????????????????# " | | #?????????????????# "" | | +?????????????????# " | | #?????????????????# | | l #?????????????????# | | h b%g #?????????????????###### | | ########+####### bm #??????????????????????? | | ??# # #??????????????????????? | | ??# + #??????????????????????? | | ??#""""" ####+##h #??????????????????????? | | ??#""""" ## #hh #??????????????????????? | | ??#""""" ## # #??????????????????????? | | ??#""""" ## # h#??????????????????????? | | ??#""""" ## # #####??????????????????? | | ??#""""" ## # # ###????????????????? | | ??# #"#####+ @ # #????????????????? | | ??# "##??# #????????????????? | | ??# ! ##???# #????????????????? | | ??# #????# ##???????????????? | | ??##############????# [%p #???????????????? | | ????????????????????# [ ! ##???????????????? | | ????????????????????# ! #????????????????? | | ????????????????????# *%* #????????????????? | | ????????????????????# [ #????????????????? | | ????????????????????##### ###????????????????? | | ????????????????????????# #??????????????????? | | ????????????????????????## ??????????????????? | | ?????????????????????????## #?????????????????? | | ???????????????????????????## #?????????????????? | | ?????????????????????????????# #?????????????????? | | ??????????????????????????????##?????????????????? | | ?????????????????????????????????????????????????? | | ?????????????????????????????????????????######### | | ?????????????????????????????????????????# | | ?????????????????????????????????????????# | | ?????????????????????????????????????????# | | ?????????????????????????????????????????# | | ?????????????????????????????????????????# | | ?????????????????????????????????????????# | | ?????????????????????????????????????????# " | +----------------------------------------------------+ Best States ------------- Heat Dissipation 118 Coolant Potential 160 Energy Generation 29 Energy Capacity 940 Matter Stores 1100 Matter Capacity 1100 Sight Range 23 Terrain Scan Density 85 Cloak Strength 4 Armor Coverage 2700 Resistance: KI 30 Resistance: TH 50 Resistance: EX 50 Resistance: EM 15 Weapon Shielding 66 Point Defense Rating 160 Reclamation Efficiency 25 Phase Shifting 5 Evasion (%) 62 Targeting Accuracy 24 Target Analysis 8 Core Analysis 15 Armor Integrity Analysis 90 Recoil Reduction 4 Matter Filtering 30 Energy Filtering 30 Particle Charging 25 Kinecelleration 50 Salvage Targeting 7 Offensive Hacking 10 Item Schematics ----------------- Combat Drone Bay | -6/Data Miner | Free Lgt. Regenerative Plating | -6/Data Miner | Free Cmb. Gravmag System | -6/Data Miner | Free Exp. Terrain Scanner | -6/Data Miner | Free Triangulator | -6/Data Miner | Free Exp. ECM Suite | -6/Data Miner | Free Robot Schematics ------------------ S-27 Virus | -6/Data Miner | Free L-41 Fighter | -6/Data Miner | Free G-50 Soldier | -6/Data Miner | Free H-66 Slayer | -6/Data Miner | Free X-72 Disruptor | -6/Data Miner | Free P-70 Sage | -6/Data Miner | Free I-36 Angel | -6/Data Miner | Free I-47 Archangel | -6/Data Miner | Free Fabricated ------------ HERF Cannon | x1 | -7/Factory | Preloaded Alien Tech Used ----------------- Dimensional Node Initializer Achievements -------------- None Challenges ------------ None Game ------ Seed DataMissileDoublenader Manual? 0 Play Time 04:57:12 Cumulative 294.6 hours Start 2020.11.05 @ 14:42:43 End 2020.11.07 @ 15:31:23 Sessions 7 Manual Loads 0 Difficulty Rogue Special Mode None Game No. 95 Rogue 95 Adventurer 0 Explorer 0 Win Type - Total 23 Types 18/0/1/2/0/1/0/1/0 Lore% 37 Gallery% 78 Achievement% 80 Wizard Run 0 Options --------- ASCII 0 Keyboard 1 Movement Numpad Keybinds 0 Fullscreen 2 Font 20/SmallcapsGlow Map View 66x50 Tactical HUD 1 Map Filters NONE Filters NONE Steam 1 RUN: 7be23993-949f-40b2-a024-f6abee6539fc